bitfinex-derivatives/quotes_SOLF0:USTF0_20241008
["timestamp","ask_amount","ask_price","bid_price","bid_amount"]
[1728397694887,6.26502,142.97,142.9,5.98841293]
[1728397695087,6.26502,142.97,142.91,5.98856402]
[1728397695290,3.4991,142.95,142.91,9.48836402]
[1728397695488,3.4991,142.95,142.91,3.4998]
[1728397695688,6.26502,142.97,142.88,3.5004]
[1728397695689,3.4996,142.92,142.88,3.5004]
[1728397695994,3.4996,142.92,142.89,5.9886276]
[1728397695995,6.14,142.92,142.89,5.9886276]
[1728397696296,6.14,142.92,142.85,0.12502]
[1728397696494,6.14,142.92,142.86,5.98755123]
[1728397696790,6.14,142.92,142.87,5.98755123]
[1728397696997,6.14,142.92,142.88,5.98755123]
[1728397697199,29.54,142.9,142.86,5.98755123]
[1728397697384,29.54,142.9,142.85,0.12502]
[1728397697591,6.14,142.92,142.86,5.73253722]
[1728397697900,29.54,142.86,142.79,0.12502]
[1728397698104,29.54,142.83,142.79,0.12502]
[1728397699001,33.0426,142.8,142.79,0.12502]
[1728397699200,39.1826,142.8,142.79,0.12502]
[1728397699706,35.68,142.8,142.73,0.12502]
[1728397699890,29.54,142.76,142.73,0.12502]
[1728397700091,29.54,142.78,142.74,1.26794948]
[1728397700291,29.54,142.78,142.73,0.12502]
[1728397700292,6.14,142.77,142.73,0.12502]
[1728397700498,29.54,142.78,142.73,0.12502]
[1728397700801,35.68,142.78,142.74,1.26796847]
[1728397701001,6.14,142.78,142.74,1.26796847]
[1728397701195,1.0,142.79,142.74,1.26796847]
[1728397701394,6.14,142.78,142.74,1.26796847]
[1728397701590,6.14,142.78,142.75,3.5038]
[1728397701796,6.14,142.78,142.73,0.12502]
[1728397702008,6.14,142.78,142.74,1.26798604]
[1728397702201,1.0,142.79,142.76,3.5034]
[1728397702403,1.0,142.79,142.73,0.12502]
[1728397702404,6.14,142.78,142.73,0.12502]
[1728397702906,6.14,142.78,142.74,1.2679734]
[1728397703507,9.6433,142.78,142.75,3.5038]
[1728397703701,6.14,142.78,142.75,3.5038]
[1728397704804,9.6431,142.78,142.74,3.504]
[1728397705203,9.6431,142.78,142.73,0.12502]
[1728397705423,9.6431,142.78,142.75,3.5038]
[1728397705615,3.5033,142.77,142.73,0.12502]
[1728397706014,6.14,142.78,142.74,1.26798996]
[1728397706211,6.14,142.78,142.74,4.77188996]
[1728397706416,6.14,142.78,142.74,3.5039]
[1728397706622,6.14,142.77,142.75,3.5036]
[1728397706813,6.14,142.77,142.73,0.12502]
[1728397707215,6.14,142.77,142.75,3.5036]
[1728397707611,9.6432,142.78,142.75,3.5036]
[1728397707821,6.14,142.78,142.73,0.12502]
[1728397708121,1.0,142.79,142.76,3.5034]
[1728397708322,6.14,142.95,142.79,29.54]
[1728397708511,29.54,142.92,142.79,35.68]
[1728397708717,29.54,142.92,142.81,29.54]
[1728397708934,9.61470418,142.9,142.84,3.5016]
[1728397709118,6.14,142.9,142.84,3.5016]
[1728397709317,6.26502,142.91,142.9,3.5001]
[1728397709531,0.12502,142.91,142.9,3.5001]
[1728397709814,0.12502,142.91,142.85,1.4159]
[1728397710019,0.12502,142.91,142.89,3.5003]
[1728397710324,0.12502,142.91,142.85,1.4159]
[1728397710724,0.12502,142.91,142.86,3.5009]
[1728397710918,0.12502,142.91,142.87,29.54]
[1728397711114,0.12502,142.91,142.88,6.14]
[1728397711318,6.26502,142.97,142.88,6.14]
[1728397711319,6.26502,142.97,142.89,29.54]
[1728397711515,0.12502,142.97,142.89,29.54]
[1728397711824,0.12502,142.97,142.96,3.4987]
[1728397712041,0.12502,142.97,142.91,29.54]
[1728397712227,0.12502,142.97,142.96,3.4987]
[1728397714114,0.12502,143.03,143.0,3.4975]
[1728397714318,0.12502,143.03,142.96,29.54]
[1728397714319,0.12502,143.03,142.97,1.3665]
[1728397715825,0.12502,143.03,142.99,3.4977]
[1728397716026,0.12502,143.03,142.97,1.3665]
[1728397716620,0.12502,143.03,142.99,3.4977]
[1728397716819,0.12502,143.03,142.97,1.3665]
[1728397717832,0.12502,143.03,142.97,30.9065]
[1728397718328,0.12502,143.03,142.97,1.3665]
[1728397719426,0.12502,143.03,142.97,30.9065]
[1728397719637,0.12502,143.03,143.02,3.4972]
[1728397720026,33.23847678,143.09,142.99,6.36]
[1728397720027,29.66502,143.09,142.99,6.36]
[1728397720229,1.27939737,143.08,143.0,29.54]
[1728397720629,1.27939737,143.08,143.02,3.4971]
[1728397720932,1.27939737,143.08,143.0,29.54]
[1728397722236,29.66502,143.09,142.99,6.36]
[1728397722435,1.27947038,143.07,143.02,3.497]
[1728397722734,4.77577038,143.06,143.02,3.497]
[1728397722928,7.63947038,143.06,143.01,3.4973]
[1728397723123,7.63947038,143.06,142.98,7.7455]
[1728397723124,9.8563,143.06,142.98,7.7455]
[1728397723529,6.36,143.06,142.98,7.7455]
[1728397725438,6.36,143.06,143.04,3.4965]
[1728397725940,3.4958,143.08,143.04,3.4965]
[1728397726137,1.28072249,143.07,143.04,3.4965]
[1728397726435,36.02502,143.09,143.04,3.4965]
[1728397726631,1.28115022,143.08,143.04,3.4965]
[1728397727334,1.28115022,143.08,142.99,1.3342]
[1728397727936,1.28115022,143.08,142.99,30.8742]
[1728397728537,3.496,143.07,143.04,3.4967]
[1728397728736,1.28115022,143.06,143.04,3.4967]
[1728397729426,30.82115022,143.06,142.99,1.3342]
[1728397729740,0.12502,143.09,142.99,1.3342]
[1728397729927,1.28196558,143.08,142.99,30.8742]
[1728397730533,3.4959,143.08,143.04,3.4965]
[1728397730733,1.28145159,143.07,142.99,1.3342]
[1728397731135,1.28104972,143.06,143.03,3.4968]
[1728397731342,1.28104972,143.06,142.99,1.3342]
[1728397731540,6.36,143.06,142.99,1.3342]
[1728397731948,29.54,143.04,142.97,1.49152]
[1728397732250,29.54,143.04,142.97,0.12502]
[1728397732251,3.4982,142.98,142.97,0.12502]
[1728397732634,29.54,142.97,142.87,6.36]
[1728397732833,29.54,142.97,142.86,38.5556]
[1728397733140,3.44698859,142.97,142.86,2.6556]
[1728397733338,3.4993,142.94,142.9,3.5001]
[1728397733750,3.4993,142.94,142.86,2.6556]
[1728397734041,35.9,142.96,142.9,3.5001]
[1728397734431,35.9,142.96,142.91,3.62482]
[1728397734832,35.9,142.96,142.91,0.12502]
[1728397735046,3.4996,142.92,142.91,0.12502]
[1728397735240,9.8596,142.92,142.91,0.12502]
[1728397737048,6.36,142.92,142.86,1.3231]
[1728397737242,35.9,142.92,142.86,4.8241]
[1728397739046,6.36,142.9,142.86,1.3231]
[1728397739641,29.54,142.94,142.86,1.3231]
[1728397739840,6.36,142.91,142.86,1.3231]
[1728397740042,29.54,142.94,142.86,1.3231]
[1728397740242,6.36,142.91,142.86,1.3231]
[1728397740653,6.36,142.91,142.88,3.5005]
[1728397740838,9.86,142.91,142.86,1.3231]
[1728397741035,6.36,142.91,142.86,1.3231]
[1728397741239,6.36,142.91,142.87,3.5007]
[1728397741748,6.36,142.91,142.86,1.3231]
[1728397741749,35.9,142.91,142.86,3.501]
[1728397742346,3.5005,142.89,142.86,3.501]
[1728397742551,35.9,142.91,142.85,0.12502]
[1728397742941,3.5006,142.89,142.85,0.12502]
[1728397743145,3.5006,142.89,142.86,3.501]
[1728397743644,3.5002,142.9,142.87,3.5007]
[1728397743841,6.36,142.91,142.85,0.12502]
[1728397744447,9.8601,142.91,142.88,3.5005]
[1728397746348,9.8601,142.91,142.85,0.12502]
[1728397746547,35.9,142.91,142.85,0.12502]
[1728397746762,29.54,142.89,142.85,0.12502]
[1728397746951,3.5011,142.86,142.85,0.12502]
[1728397748553,6.36,142.86,142.85,0.12502]
[1728397748750,3.45759371,142.88,142.85,3.62632]
[1728397748954,6.36,142.87,142.85,0.12502]
[1728397749645,30.9243,142.9,142.85,0.12502]
[1728397749856,6.34,142.91,142.85,0.12502]
[1728397750663,29.54,142.87,142.85,0.12502]
[1728397750848,9.8411,142.86,142.85,0.12502]
[1728397751152,6.34,142.86,142.79,0.12502]
[1728397751357,3.5024,142.81,142.79,0.12502]
[1728397751560,3.45619302,142.81,142.79,0.12502]
[1728397751855,6.34,142.82,142.79,0.12502]
[1728397752150,3.5026,142.8,142.79,0.12502]
[1728397752549,6.34,142.82,142.79,0.12502]
[1728397752748,3.5025,142.81,142.79,0.12502]
[1728397753152,6.34,142.8,142.79,0.12502]
[1728397753348,29.54,142.83,142.79,0.12502]
[1728397753563,1.0,142.85,142.79,0.12502]
[1728397753564,6.34,142.82,142.79,0.12502]
[1728397754757,3.5025,142.81,142.79,0.12502]
[1728397754958,32.95922128,142.83,142.79,0.12502]
[1728397755187,6.34,142.82,142.79,0.12502]
[1728397755358,3.5026,142.8,142.79,0.12502]
[1728397756067,35.88,142.82,142.79,0.12502]
[1728397756068,6.34,142.82,142.79,0.12502]
[1728397756459,3.5025,142.81,142.79,0.12502]
[1728397756655,6.34,142.82,142.79,3.62772]
[1728397756865,30.54,142.85,142.79,0.12502]
[1728397757072,9.8417,142.84,142.79,0.12502]
[1728397757367,9.8417,142.84,142.81,3.5022]
[1728397757969,6.34,142.84,142.79,0.12502]
[1728397758863,6.34,142.84,142.8,3.5025]
[1728397759062,6.34,142.83,142.8,3.5025]
[1728397759268,3.5022,142.82,142.79,3.62772]
[1728397759465,6.34,142.83,142.79,0.12502]
[1728397759865,9.8419,142.83,142.8,3.5024]
[1728397760066,6.34,142.83,142.79,0.12502]
[1728397760564,3.5024,142.81,142.79,0.12502]
[1728397760760,39.4312366,142.83,142.79,0.12502]
[1728397760958,3.5022,142.82,142.79,3.62782]
[1728397761877,6.34,142.83,142.82,3.5021]
[1728397762064,6.34,142.85,142.79,0.12502]
[1728397762573,29.54,142.84,142.79,0.12502]
[1728397762773,29.54,142.81,142.79,0.12502]
[1728397762967,9.92370784,142.8,142.79,0.12502]
[1728397763161,6.34,142.8,142.79,0.12502]
[1728397763471,30.903,142.84,142.79,0.12502]
[1728397763472,6.34,142.84,142.79,0.12502]
[1728397764174,6.34,142.84,142.83,3.5018]
[1728397764371,96.96544014,142.87,142.8,1.4049]
[1728397764583,3.5003,142.9,142.86,3.5009]
[1728397764885,6.34,142.88,142.8,2.784]
[1728397765374,29.54,142.86,142.79,0.12502]
[1728397765767,33.0411,142.86,142.82,3.5019]
[1728397765968,6.34,142.85,142.82,3.5019]
[1728397766263,3.5017,142.84,142.81,3.5022]
[1728397766569,6.34,142.85,142.79,0.12502]
[1728397767383,29.66502,142.91,142.79,6.46502]
[1728397767675,6.34,142.9,142.79,36.00502]
[1728397768770,3.5006,142.89,142.85,3.5012]
[1728397769074,6.34,142.89,142.79,36.00502]
[1728397769379,0.12502,142.91,142.87,3.5008]
[1728397769581,6.34,142.89,142.79,36.00502]
[1728397769878,6.34,142.89,142.86,3.501]
[1728397770868,6.34,142.89,142.81,18.48]
[1728397771066,6.34,142.89,142.82,18.48]
[1728397771375,6.34,142.89,142.8,18.48]
[1728397771576,9.8405,142.89,142.85,3.5011]
[1728397771769,9.8405,142.89,142.8,18.48]
[1728397772073,9.8405,142.89,142.86,3.5009]
[1728397772074,6.34,142.89,142.86,3.5009]
[1728397772981,3.5002,142.9,142.86,3.5009]
[1728397773674,6.46502,142.91,142.8,29.57]
[1728397773982,29.57,142.89,142.79,0.12502]
[1728397774180,3.5009,142.87,142.79,6.46502]
[1728397774375,9.8409,142.87,142.79,6.46502]
[1728397774582,9.8409,142.87,142.84,3.5016]
[1728397774975,6.34,142.87,142.79,6.46502]
[1728397775183,9.8401,142.9,142.87,3.5007]
[1728397775381,6.34,142.9,142.79,6.46502]
[1728397775784,3.5005,142.89,142.85,3.5011]
[1728397776080,29.57,142.89,142.79,6.46502]
[1728397776375,3.501,142.87,142.84,3.5015]
[1728397776970,29.57,142.89,142.82,3.5019]
[1728397777181,29.57,142.87,142.79,0.12502]
[1728397777375,9.89329193,142.86,142.79,0.12502]
[1728397777879,29.57,142.84,142.79,0.12502]
[1728397778068,3.5026,142.8,142.79,0.12502]
[1728397778270,9.8426,142.8,142.79,0.12502]
[1728397778470,9.8426,142.8,142.73,0.12502]
[1728397778471,35.91,142.8,142.73,0.12502]
[1728397778674,3.5038,142.76,142.73,0.12502]
[1728397778872,29.57,142.77,142.73,0.12502]
[1728397779080,9.99631854,142.76,142.73,0.12502]
[1728397779382,3.504,142.74,142.73,0.12502]
[1728397779883,3.5045,142.73,142.69,3.5052]
[1728397780269,29.57,142.75,142.67,0.12502]
[1728397780983,9.99631854,142.76,142.67,0.12502]
[1728397780984,6.48,142.76,142.67,0.12502]
[1728397781475,6.48,142.75,142.67,0.12502]
[1728397782478,6.48,142.76,142.67,6.60502]
[1728397783582,0.12502,142.79,142.68,29.57]
[1728397783796,6.60502,142.79,142.68,29.57]
[1728397784078,10.10802,142.79,142.68,29.57]
[1728397784379,6.60502,142.79,142.68,29.57]
[1728397784682,0.12502,142.79,142.68,29.57]
[1728397784881,0.12502,142.79,142.7,29.57]
[1728397785180,0.12502,142.79,142.78,3.5031]
[1728397786082,6.5,142.84,142.81,3.5022]
[1728397787280,6.5,142.84,142.75,6.5]
[1728397787281,3.5019,142.83,142.77,3.5031]
[1728397787482,3.5019,142.83,142.75,6.5]
[1728397788084,3.5019,142.83,142.8,3.5026]
[1728397788284,3.5022,142.82,142.75,6.5]
[1728397788686,6.5,142.84,142.75,6.5]
[1728397788987,10.0017,142.84,142.75,6.5]
[1728397789188,6.5,142.84,142.81,3.5022]
[1728397789388,6.5,142.84,142.75,36.07]
[1728397789788,6.5,142.84,142.77,3.5031]
[1728397789976,6.5,142.84,142.78,1.3162]
[1728397791584,6.5,142.84,142.82,3.5019]
[1728397791891,6.5,142.84,142.78,1.3162]
[1728397792782,6.5,142.84,142.75,6.5]
[1728397793077,3.5026,142.8,142.76,3.5033]
[1728397793282,3.5026,142.8,142.74,2.7719]
[1728397793690,3.5024,142.81,142.77,3.5031]
[1728397793991,3.5024,142.81,142.74,2.7719]
[1728397794489,3.5024,142.81,142.78,3.5029]
[1728397794692,29.57,142.82,142.74,2.7719]
[1728397795478,29.57,142.8,142.74,2.7719]
[1728397795685,6.48,142.79,142.74,1.455]
[1728397796186,3.5032,142.78,142.75,3.5038]
[1728397797681,3.55503915,142.78,142.73,0.12502]
[1728397798286,3.5037,142.76,142.73,3.62932]
[1728397798489,6.48,142.79,142.73,0.12502]
[1728397799107,3.5036,142.76,142.73,3.62912]
[1728397799690,3.56029445,142.78,142.73,0.12502]
[1728397799890,3.5037,142.76,142.73,3.62922]
[1728397800391,3.56029445,142.78,142.73,0.12502]
[1728397800687,3.504,142.74,142.73,0.12502]
[1728397800890,10.004,142.74,142.73,0.12502]
[1728397801194,6.5,142.74,142.73,0.12502]
[1728397802494,6.5,142.77,142.73,0.12502]
[1728397802893,6.5,142.77,142.73,3.62912]
[1728397803191,6.5,142.77,142.73,0.12502]
[1728397804394,3.504,142.74,142.73,0.12502]
[1728397805396,10.0036,142.76,142.73,0.12502]
[1728397805899,6.5,142.76,142.74,3.5038]
[1728397806695,6.5,142.76,142.73,3.62922]
[1728397807006,6.5,142.76,142.73,0.12502]
[1728397807298,3.504,142.74,142.73,0.12502]
[1728397807596,6.5,142.76,142.73,0.12502]
[1728397807797,6.5,142.76,142.74,3.5039]
[1728397807994,6.5,142.76,142.73,0.12502]
[1728397808398,3.5038,142.75,142.73,0.12502]
[1728397808591,6.5,142.76,142.73,0.12502]
[1728397808799,3.5039,142.75,142.73,0.12502]
[1728397809094,3.5039,142.75,142.72,3.5045]
[1728397809095,18.51,142.74,142.67,0.12502]
[1728397809292,3.505,142.71,142.67,0.12502]
[1728397809486,18.51,142.7,142.67,0.12502]
[1728397809689,6.54,142.69,142.67,0.12502]
[1728397809889,1.4326,142.72,142.67,0.12502]
[1728397810103,6.54,142.74,142.67,0.12502]
[1728397810316,25.05,142.73,142.67,0.12502]
[1728397810698,3.5039,142.75,142.67,0.12502]
[1728397810886,6.54,142.75,142.71,3.5046]
[1728397811195,3.5042,142.74,142.67,0.12502]
[1728397811399,6.54,142.75,142.67,0.12502]
[1728397811596,22.07624723,142.76,142.68,18.51]
[1728397811796,22.07624723,142.76,142.67,0.12502]
[1728397811797,11.4761,142.77,142.69,18.51]
[1728397811991,18.51,142.76,142.69,3.5051]
[1728397812191,18.51,142.75,142.67,0.12502]
[1728397812396,18.51,142.72,142.67,0.12502]
[1728397812595,18.51,142.72,142.69,3.5053]
[1728397812801,10.0444,142.73,142.69,3.5053]
[1728397813820,6.54,142.73,142.67,0.12502]
[1728397813990,6.54,142.73,142.67,18.63502]
[1728397815007,6.54,142.73,142.71,3.5047]
[1728397815301,6.54,142.73,142.67,18.63502]
[1728397815510,6.54,142.73,142.72,3.5045]
[1728397815698,6.54,142.73,142.67,18.63502]
[1728397815901,6.54,142.73,142.67,0.12502]
[1728397816604,6.54,142.73,142.71,3.5046]
[1728397816803,6.54,142.73,142.67,0.12502]
[1728397817194,6.54,142.73,142.68,18.51]
[1728397817396,6.54,142.73,142.67,0.12502]
[1728397818305,18.51,142.72,142.67,0.12502]
[1728397819103,3.5049,142.71,142.67,0.12502]
[1728397819395,18.51,142.72,142.67,0.12502]
[1728397819600,18.51,142.7,142.67,0.12502]
[1728397819800,18.51,142.68,142.63,0.12518]
[1728397819997,3.5063,142.65,142.63,0.12518]
[1728397820193,10.0463,142.65,142.61,0.12502]
[1728397820396,6.54,142.65,142.61,0.12502]
[1728397820596,18.51,142.62,142.6,2.0]
[1728397820792,10.0472,142.61,142.6,0.44098001]
[1728397820993,6.54,142.61,142.6,0.44098001]
[1728397821403,18.51,142.66,142.6,0.44098001]
[1728397821604,6.54,142.65,142.6,0.44098001]
[1728397821798,6.54,142.65,142.61,3.5071]
[1728397821799,10.0463,142.65,142.61,3.5071]
[1728397821999,6.54,142.65,142.6,0.44098001]
[1728397822200,18.51,142.63,142.6,0.44098001]
[1728397822405,3.5071,142.62,142.6,0.44098001]
[1728397822610,6.54,142.61,142.55,2.92502]
[1728397822807,10.5115,142.6,142.55,2.92502]
[1728397823001,18.51,142.59,142.55,2.92502]
[1728397823309,7.004,142.58,142.55,2.92502]
[1728397823499,7.004,142.58,142.55,6.43372]
[1728397824007,7.004,142.56,142.55,2.92502]
[1728397825110,7.004,142.58,142.55,2.92502]
[1728397825802,4.8196,142.58,142.55,2.92502]
[1728397826098,4.8196,142.58,142.55,21.43502]
[1728397826297,4.8196,142.58,142.55,2.92502]
[1728397826500,0.12502,142.67,142.56,36.18]
[1728397826707,0.12502,142.67,142.59,29.64]
[1728397826906,0.12502,142.67,142.66,3.506]
[1728397828913,0.12502,142.73,142.64,6.54]
[1728397829812,0.12502,142.73,142.64,36.18]
[1728397830115,0.12502,142.73,142.72,3.5045]
[1728397830903,36.30502,142.79,142.68,6.54]
[1728397831106,0.12502,142.79,142.78,3.5031]
[1728397831915,0.12502,142.79,142.77,3.5031]
[1728397832117,0.12502,142.79,142.73,2.7901]
[1728397832314,29.76502,142.79,142.73,2.7901]
[1728397832723,0.12502,142.79,142.73,2.7901]
[1728397833117,0.12502,142.79,142.78,3.5031]
[1728397833310,0.12502,142.79,142.73,2.7901]
[1728397833734,0.12502,142.79,142.78,3.5031]
[1728397834017,0.12502,142.79,142.73,2.7901]
[1728397835208,0.12502,142.79,142.78,3.5031]
[1728397835904,0.12502,142.79,142.76,3.5033]
[1728397836109,0.12502,142.79,142.73,9.6901]
[1728397836818,0.12502,142.79,142.73,2.7901]
[1728397837322,29.76502,142.79,142.73,2.7901]
[1728397837622,29.76502,142.79,142.73,1.4177]
[1728397837820,3.5032,142.78,142.73,1.4177]
[1728397838025,36.54,142.77,142.68,1.3544]
[1728397838214,36.54,142.77,142.68,2.7819]
[1728397838416,29.64,142.74,142.68,1.4275]
[1728397838724,6.9,142.73,142.66,1.3339]
[1728397839517,10.4044,142.73,142.68,3.5053]
[1728397839721,1.0,142.76,142.66,1.3339]
[1728397839922,10.4038,142.75,142.71,3.5046]
[1728397840225,6.9,142.75,142.66,1.3339]
[1728397840519,3.5046,142.72,142.68,3.5055]
[1728397840720,29.64,142.74,142.66,1.3339]
[1728397841023,33.1441,142.74,142.69,3.5051]
[1728397841322,33.1441,142.74,142.66,1.3339]
[1728397841517,29.64,142.74,142.66,1.3339]
[1728397841820,6.9,142.76,142.67,7.02502]
[1728397842021,36.54,142.76,142.69,3.5052]
[1728397842215,3.5041,142.74,142.67,0.12502]
[1728397842420,36.54,142.76,142.67,0.12502]
[1728397843421,3.5039,142.75,142.67,0.12502]
[1728397843621,36.54,142.76,142.67,0.12502]
[1728397843819,36.54,142.76,142.67,29.76502]
[1728397844020,3.504,142.75,142.67,0.12502]
[1728397844223,10.404,142.75,142.67,0.12502]
[1728397844428,6.9,142.75,142.67,0.12502]
[1728397844618,3.5041,142.74,142.7,3.5048]
[1728397844922,6.9,142.75,142.67,0.12502]
[1728397848022,0.12502,142.79,142.78,3.5031]
[1728397849419,0.12502,142.85,142.76,36.54]
[1728397849828,0.12502,142.85,142.78,29.64]
[1728397850130,0.12502,142.85,142.76,6.9]
[1728397850329,3.5016,142.84,142.77,6.9]
[1728397850632,29.76502,142.85,142.77,6.9]
[1728397850633,0.12502,142.85,142.77,6.9]
[1728397851216,0.12502,142.85,142.77,36.54]
[1728397851849,0.12502,142.85,142.84,3.5016]
[1728397852725,7.02502,142.91,142.82,2.8104]
[1728397852925,0.12502,142.91,142.82,32.4504]
[1728397853128,0.12502,142.91,142.9,3.5001]
[1728397854017,0.12502,142.91,142.85,6.9]
[1728397854728,0.12502,142.91,142.83,6.9]
[1728397855029,29.64,142.9,142.86,3.501]
[1728397855223,29.64,142.9,142.83,6.9]
[1728397855224,29.64,142.9,142.82,2.8104]
[1728397855825,33.1403,142.9,142.85,3.5012]
[1728397856027,33.1403,142.9,142.82,2.8104]
[1728397856028,29.64,142.9,142.82,2.8104]
[1728397856230,29.64,142.88,142.82,2.8104]
[1728397856524,29.64,142.88,142.82,1.4187]
[1728397857518,33.1408,142.88,142.82,1.4187]
[1728397857722,29.64,142.88,142.82,1.4187]
[1728397857922,1.4091,142.9,142.89,3.5004]
[1728397858126,36.66502,142.91,142.82,1.4187]
[1728397858733,0.12502,142.91,142.82,1.4187]
[1728397859826,0.12502,142.91,142.87,3.5006]
[1728397860025,0.12502,142.91,142.82,1.4187]
[1728397860329,29.76502,142.91,142.82,1.4187]
[1728397860528,29.64,142.88,142.82,1.4187]
[1728397860731,29.64,142.88,142.8,1.3997]
[1728397861126,6.9,142.89,142.8,31.0397]
[1728397861328,7.00502,142.91,142.83,3.5018]
[1728397861535,7.00502,142.91,142.8,31.0397]
[1728397862134,7.00502,142.91,142.82,29.64]
[1728397862435,7.00502,142.91,142.83,6.88]
[1728397863131,0.12502,142.91,142.83,6.88]
[1728397863530,0.12502,142.91,142.9,3.5001]
[1728397863926,0.12502,142.91,142.85,1.4067]
[1728397865138,3.5005,142.89,142.83,3.5017]
[1728397865340,29.64,142.88,142.8,9.6864]
[1728397865530,29.64,142.88,142.8,2.8064]
[1728397865725,29.64,142.88,142.8,9.6864]
[1728397866533,29.64,142.88,142.86,3.501]
[1728397867136,29.64,142.88,142.84,3.5016]
[1728397867137,33.1408,142.88,142.84,3.5016]
[1728397867335,29.64,142.88,142.8,8.2867]
[1728397867733,3.501,142.87,142.83,3.5018]
[1728397867945,29.64,142.88,142.8,8.2867]
[1728397868234,3.5012,142.86,142.83,3.5018]
[1728397868930,0.12502,142.91,142.83,22.0]
[1728397869237,0.12502,142.91,142.9,3.5001]
[1728397869437,0.12502,142.97,142.89,6.88]
[1728397869642,0.12502,142.97,142.89,36.52]
[1728397870138,0.12502,142.97,142.96,3.4987]
[1728397871240,0.12502,142.97,142.94,29.64]
[1728397871241,0.12502,143.03,143.01,3.4972]
[1728397871430,0.12502,143.03,142.94,29.64]
[1728397871635,0.12502,143.03,143.01,3.4973]
[1728397872033,0.12502,143.03,142.96,29.64]
[1728397872233,0.12502,143.03,143.02,3.4972]
[1728397873034,0.12502,143.03,142.97,6.88]
[1728397873843,0.12502,143.03,143.02,3.4972]
[1728397874832,0.12502,143.09,143.03,29.64]
[1728397875037,0.12502,143.09,143.05,29.64]
[1728397875341,0.12518,143.11,143.1,3.4952]
[1728397876138,0.12518,143.11,143.07,1.3644]
[1728397878345,0.12518,143.11,143.1,3.4952]
[1728397879038,0.12518,143.11,143.07,1.3644]
[1728397879039,0.12518,143.11,143.09,3.4954]
[1728397879640,0.12518,143.11,143.07,1.3644]
[1728397880838,0.12518,143.11,143.05,6.88]
[1728397881439,0.12518,143.11,143.06,3.496]
[1728397881640,0.12518,143.11,143.04,8.2436]
[1728397882142,48.01,143.1,143.03,0.12502]
[1728397882338,49.3933,143.1,143.03,0.12502]
[1728397883341,6.88,143.09,143.03,0.12502]
[1728397884438,3.4966,143.05,143.03,0.12502]
[1728397884633,6.88,143.05,142.97,7.00502]
[1728397884945,3.4971,143.03,142.98,3.4981]
[1728397885243,3.4971,143.03,142.92,2.7959]
[1728397885244,48.01,143.0,142.91,0.12502]
[1728397885437,54.89,143.05,142.91,0.12502]
[1728397885438,3.4987,142.96,142.91,0.12502]
[1728397885638,54.89,142.98,142.91,0.12502]
[1728397885846,56.3357,142.98,142.91,0.12502]
[1728397886044,3.4996,142.92,142.91,0.12502]
[1728397886243,54.89,142.93,142.83,6.88]
[1728397886440,6.88,142.92,142.81,1.3503]